[Event "BSV-SCK IM 2022"]
[Site "Berlin"]
[Date "2022.04.09"]
[Round "3.3"]
[White "Glantz, Robert"]
[Black "Mcgowan, Daniel"]
[Result "1-0"]
[ECO "A47"]
[WhiteElo "2318"]
[BlackElo "2101"]
[Annotator "TA"]
[PlyCount "111"]
[EventDate "2022.04.08"]
[EventCountry "GER"]
[SourceTitle "playchess.com"]
[Source "ChessBase"]
[SourceQuality "1"]
[TimeControl "5400+30"]

{[%evp 14,111,21,18,42,32,42,17,18,31,31,35,33,23,40,40,52,51,55,61,54,40,41,28,31,22,26,8,56,33,61,34,29,26,49,30,41,1,16,12,13,7,22,22,22,22,24,16,19,22,12,46,25,14,182,97,100,0,0,0,0,0,0,0,0,0,0,0,0,0,0,0,0,0,9,0,55,22,230,62,431,437,435,431,429,336,286,0,421,283,274,233,348,341,419,422,404,394,29983,12843]} 1. d4 {[%emt 0:00:08]} Nf6 {[%emt 0:00:21]} 2. Nf3 {[%emt 0:00:21]} e6 {[%emt 0:00:36]} 3. Bf4 {[%emt 0:00:34]} b6 {[%emt 0:01:02]} 4. e3 {[%emt 0:00:32]} Bb7 {[%emt 0:10:25]} 5. Nbd2 {[%emt 0:00:40]} c5 {[%emt 0:02:06]} 6. Bd3 {[%emt 0:02:26]} cxd4 {[%emt 0:01:41]} 7. exd4 {[%emt 0:00:11]} Be7 {[%emt 0:01:20]} 8. h3 {[%emt 0:01:20]} d6 {[%emt 0:02:07] A47: 1 d4 Nf6 2 Nf3 b6: Torre, London and Colle Systems.} 9. O-O {[%emt 0:01:04]} O-O {[%emt 0:00:41]} 10. a4 {[%emt 0:04:31] [#]} Nc6 $146 {[%emt 0:16:58] The position is equal.} ({Predecessor:} 10... a6 11. c3 Nbd7 12. Re1 h6 13. Qe2 Re8 14. Nc4 Qc7 15. Bh2 Bf8 16. Ne3 Qc6 {1-0 (37) Praggnanandhaa,R (2608)-Martinez Alcantara,J (2620) Chess.com INT 2020}) 11. Re1 {[%emt 0:01:53]} Rc8 {[%emt 0:03:51]} 12. Bf1 {[%emt 0:00:43]} Re8 {[%emt 0:03:21]} 13. c3 {[%emt 0:01:17]} h6 {[%emt 0:04:08]} 14. Bg3 {[%emt 0:03:13]} (14. Bb5 {looks sharper.} Qd7 15. Qe2 Nd5 16. Bg3) 14... Nb8 {[%emt 0:12:15]} 15. a5 {[%emt 0:05:06]} Bf8 {[%emt 0:08:28]} 16. axb6 {[%emt 0:08:24]} axb6 {[%emt 0:00:26]} 17. Bb5 {[%emt 0:03:09]} Bc6 {[%emt 0:01:28]} 18. Bxc6 {[%emt 0:04:38]} Nxc6 {[%emt 0:00:41]} 19. Qb3 {[%emt 0:10:34]} Qc7 {[%emt 0:09:19]} 20. Ra6 {[%emt 0:04:31]} Nd7 {[%emt 0:07:05]} (20... Nd5 $11 {is more appropriate.}) 21. Qb5 {[%emt 0:12:03]} Ra8 {[%emt 0:03:29]} 22. Rea1 {[%emt 0:02:02] 0x0.0021bc9c0d0bdp-1022s more active pieces.} Rxa6 {[%emt 0:00:27]} 23. Rxa6 {[%emt 0:00:28]} Rc8 {[%emt 0:03:31]} 24. Ra1 {[%emt 0:08:13]} Nf6 {[%emt 0:03:28]} 25. c4 {[%emt 0:03:52]} Nb8 {[%emt 0:00:58]} 26. Ra8 {[%emt 0:07:51]} Qb7 {[%emt 0:01:08]} 27. Qa4 {[%emt 0:01:05]} Nc6 {[%emt 0:01:33]} 28. Rxc8 {[%emt 0:02:21]} Qxc8 {[%emt 0:00:02]} 29. b4 {[%emt 0:00:34]} Qb7 {[%emt 0:00:48]} 30. Bf4 {[%emt 0:07:09]} Nxd4 {[%emt 0:00:58]} 31. Nxd4 {[%emt 0:00:13]} e5 {[%emt 0:00:02]} 32. Be3 {[%emt 0:00:29] [#] Strongly threatening Qc6.} exd4 {[%emt 0:00:05]} 33. Bxd4 {[%emt 0:00:04]} Nh5 {[%emt 0:01:25]} (33... Ne4 $1 $11 34. Nxe4 Qxe4) 34. Be3 {[%emt 0:00:40]} (34. g3 $18) 34... d5 $16 {[%emt 0:00:26][%cal Od5d4]} 35. Qd1 {[%emt 0:04:19]} (35. c5 $16 bxc5 36. bxc5) 35... Nf6 $11 {[%emt 0:00:20]} 36. c5 {[%emt 0:00:15]} bxc5 {[%emt 0:00:22]} 37. bxc5 {[%emt 0:00:02]} Qb4 {[%emt 0:00:58]} 38. Nb3 {[%emt 0:00:54] Prevents d4.} Qc4 {[%emt 0:00:29]} 39. Nd2 {[%emt 0:00:35]} Qb4 {[%emt 0:00:20]} 40. Nb3 {[%emt 0:00:57] Inhibits d4.} Qc4 {[%emt 0:00:07]} 41. Nd2 {[%emt 0:00:00]} Qb4 {[%emt 0:00:00]} 42. c6 {[%emt 0:00:00]} Qc3 {[%emt 0:00:00]} 43. Qa4 {[%emt 0:00:00] Black must now prevent Nf1.} Bd6 {[%emt 0:00:00]} 44. Nf3 {[%emt 0:00:00]} Bc7 {[%emt 0:00:00]} (44... Ne4 $11) 45. g4 {[%emt 0:00:00]} Ne4 $2 {[%emt 0:00:00]} (45... d4 $1 $11 46. Nxd4 Nd5) 46. Qb5 $2 {[%emt 0:00:00]} ({Better is} 46. Kg2 $18) 46... Qc4 $2 {[%emt 0:00:00][%mdl 8192]} (46... Qf6 $1 $14 47. Kg2 Qd8) 47. Qb7 $18 {[%emt 0:00:00]} Bd6 {[%emt 0:00:00]} 48. Qd7 {[%emt 0:00:36]} Qb5 {[%emt 0:00:00]} 49. Qe8+ {[%emt 0:01:08]} Kh7 {[%emt 0:00:00]} 50. Qd7 {[%emt 0:00:44]} (50. Qxf7 $6 Qxc6 51. Bd4 Qc7 52. Qf5+ (52. Qxd5 Qe7 $16) 52... g6 53. Qxd5 Qe7 $16) (50. Nd4 $142 Qb1+ 51. Kg2) 50... Kg8 $1 {[%emt 0:00:00]} 51. Kg2 {[%emt 0:00:29]} ({Resist} 51. Qd8+ Kh7 52. c7 Bxc7 53. Qxc7 Qe8 $18) 51... Qb8 {[%emt 0:00:00]} 52. Nd4 {[%emt 0:01:50] [#] Threatens to win with Nf5.} Nf6 {[%emt 0:05:35]} (52... g6 $142 53. Ne2 (53. Bxh6 Nc5 $11) 53... d4 54. Bxd4 Ng5) 53. Qb7 {[%emt 0:00:06]} Ne8 {[%emt 0:01:17]} 54. Nb5 {[%emt 0:01:01]} Qd8 {[%emt 0:00:42]} 55. Qd7 {[%emt 0:01:05]} Qb8 {[%emt 0:00:20]} (55... Be7 $18 56. Bb6 Qxd7 57. cxd7 Nf6 58. d8=Q+ Bxd8) 56. Nxd6 {[%emt 0:00:28] Weighted Error Value: White=0.27 (precise) /Black=0.50} 1-0

[Event "BSV-SCK IM 2022"]
[Site "Berlin"]
[Date "2022.04.09"]
[Round "3.4"]
[White "Eilenberg, Jonas"]
[Black "Schmidek, Emil"]
[Result "0-1"]
[ECO "D31"]
[WhiteElo "2135"]
[BlackElo "2383"]
[Annotator "NA RC"]
[PlyCount "78"]
[EventDate "2022.04.08"]
[EventCountry "GER"]
[SourceTitle "playchess.com"]
[Source "ChessBase"]
[SourceQuality "1"]
[TimeControl "5400+30"]

1. d4 {[%emt 0:00:03]} d5 {[%emt 0:00:05]} 2. c4 {[%emt 0:00:05]} e6 {[%emt 0:00:04]} 3. Nc3 {[%emt 0:00:05]} a6 {[%emt 0:00:04]} 4. cxd5 {[%emt 0:00:05]} exd5 {[%emt 0:00:05]} 5. Bf4 {[%emt 0:00:05]} Nf6 {[%emt 0:00:09]} 6. e3 {[%emt 0:00:06]} Bd6 {[%emt 0:00:07]} 7. Bg5 {[%emt 0:04:11]} Be6 {[%emt 0:04:02]} 8. Nf3 {[%emt 0:01:53]} Nbd7 {[%emt 0:00:42]} 9. Bd3 {[%emt 0:02:24]} h6 {[%emt 0:07:56]} 10. Bh4 {[%emt 0:00:13]} O-O {[%emt 0:00:21]} 11. O-O {[%emt 0:01:44]} c6 {[%emt 0:04:02]} 12. Rc1 {[%emt 0:06:40]} Re8 {[%emt 0:07:05]} 13. Qc2 {[%emt 0:05:30]} Qb8 {[%emt 0:06:24]} 14. Bg3 {[%emt 0:02:02]} Bxg3 {[%emt 0:00:36]} 15. hxg3 {[%emt 0:00:02]} Ng4 {[%emt 0:14:16]} 16. Ne2 {[%emt 0:11:05]} Ndf6 {[%emt 0:03:49]} 17. Nf4 {[%emt 0:10:04]} Qd6 {[%emt 0:09:54]} 18. Bf5 {[%emt 0:11:15]} Bxf5 {[%emt 0:05:03]} 19. Qxf5 {[%emt 0:00:05]} g6 {[%emt 0:00:56]} 20. Qc2 {[%emt 0:04:07]} Ne4 {[%emt 0:02:35]} 21. Nd3 {[%emt 0:05:06]} Kg7 {[%emt 0:02:19]} 22. Nfe5 {[%emt 0:03:56]} Nxe5 {[%emt 0:00:29]} 23. Nxe5 {[%emt 0:00:09]} c5 {[%emt 0:04:37]} 24. Nd3 {[%emt 0:06:09]} c4 {[%emt 0:01:09]} 25. Nf4 {[%emt 0:01:00]} h5 {[%emt 0:02:00]} 26. Kh2 {[%emt 0:11:44]} b5 {[%emt 0:06:04]} 27. Rfe1 {[%emt 0:03:25]} Nf6 {[%emt 0:01:55]} 28. Kg1 {[%emt 0:02:46]} Re7 {[%emt 0:01:56]} 29. Qd2 {[%emt 0:02:30]} Ne4 {[%emt 0:05:56]} 30. Qa5 {[%emt 0:01:46]} Rh8 {[%emt 0:00:12]} 31. a4 {[%emt 0:02:14]} g5 {[%emt 0:00:38]} 32. Nh3 {[%emt 0:01:05]} f6 {[%emt 0:04:22]} 33. axb5 {[%emt 0:02:01]} axb5 {[%emt 0:00:06]} 34. Ra1 {[%emt 0:00:48]} Rb8 {[%emt 0:00:54]} 35. Rec1 {[%emt 0:00:54]} b4 {[%emt 0:02:45]} 36. Ra4 {[%emt 0:00:28]} Nd2 {[%emt 0:02:23]} 37. Qc5 {[%emt 0:00:41]} Qxc5 {[%emt 0:00:36]} 38. dxc5 {[%emt 0:00:01]} c3 {[%emt 0:02:14]} 39. bxc3 {[%emt 0:00:59]} b3 {[%emt 0:00:07]} 0-1

[Event "BSV-SCK IM 2022"]
[Site "Berlin"]
[Date "2022.04.09"]
[Round "3.5"]
[White "Muse, Drazen"]
[Black "Eugene, Floryan"]
[Result "1/2-1/2"]
[ECO "C71"]
[WhiteElo "2325"]
[BlackElo "2404"]
[Annotator "TA"]
[PlyCount "25"]
[EventDate "2022.04.08"]
[EventCountry "GER"]
[SourceTitle "playchess.com"]
[Source "ChessBase"]
[SourceQuality "1"]
[TimeControl "5400+30"]

{[%evp 16,25,17,0,0,0,0,0,0,0,0,0]} 1. e4 {[%emt 0:00:04]} e5 {[%emt 0:00:23]} 2. Nf3 {[%emt 0:00:05]} Nc6 {[%emt 0:00:06]} 3. Bb5 {[%emt 0:00:06][%cal Bf1b5,Bb5a4,Ba4b3][%mdl 32]} a6 {[%emt 0:06:11]} 4. Ba4 {[%emt 0:01:12]} d6 {[%emt 0:02:10]} 5. d4 {[%emt 0:13:06]} b5 {[%emt 0:00:43]} 6. Bb3 {[%emt 0:00:07]} Nxd4 {[%emt 0:00:06]} 7. Nxd4 {[%emt 0:00:05]} exd4 {[%emt 0:00:03]} 8. c3 {[%emt 0:00:20]} dxc3 {[%emt 0:10:35]} 9. Qd5 {[%emt 0:00:51][%csl Gb3][%cal Rd5f7] [#] The position is equal.} Be6 {[%emt 0:01:23] C71: Ruy Lopez: Deferred Steinitz Variation, sidelines.} 10. Qc6+ {[%emt 0:00:05]} Bd7 {[%emt 0:01:12]} 11. Qd5 {[%emt 0:00:07][%csl Gb3][%cal Rd5f7]} Be6 {[%emt 0:03:18]} 12. Qc6+ {[%emt 0:00:04] [#]} Bd7 $146 {[%emt 0:00:20]} ({Predecessor:} 12... Ke7 13. Nxc3 Nf6 14. e5 dxe5 15. Be3 Nd7 16. Bg5+ Nf6 17. Rd1 Bd7 18. Nd5+ Ke8 19. Nxc7+ Ke7 20. Qd6# {1-0 (20) Koskinen,A-Harju,A Finland 1986}) 13. Qd5 {[%emt 1:20:48] An even fight not without its subleties.} 1/2-1/2

[Event "BSV-SCK IM 2022"]
[Site "Berlin"]
[Date "2022.04.10"]
[Round "4.1"]
[White "Vogel, Constantin"]
[Black "Eugene, Floryan"]
[Result "0-1"]
[ECO "E05"]
[WhiteElo "2209"]
[BlackElo "2404"]
[Annotator "TA"]
[PlyCount "68"]
[EventDate "2022.04.08"]
[EventType "tourn"]
[EventCountry "GER"]
[SourceTitle "playchess.com"]
[Source "ChessBase"]
[SourceQuality "1"]
[TimeControl "5400+30"]

{[%evp 19,68,12,21,3,0,3,14,17,16,2,9,0,9,-1,0,0,31,0,33,32,35,39,56,56,56,11,8,21,21,18,9,0,133,134,183,37,37,0,0,-79,0,-34,0,-968,-963,-945,-943,-927,-917,-870,-733]} 1. c4 {[%emt 0:00:03]} Nf6 {[%emt 0:00:06]} 2. Nf3 {[%emt 0:00:12]} e6 {[%emt 0:00:31]} 3. g3 {[%emt 0:00:18]} d5 {[%emt 0:00:25]} 4. Bg2 {[%emt 0:00:20]} Be7 {[%emt 0:02:27]} 5. d4 {[%emt 0:00:08]} O-O {[%emt 0:01:11]} 6. O-O {[%emt 0:00:18]} dxc4 {[%emt 0:00:14]} 7. Qc2 {[%emt 0:01:00]} a6 {[%emt 0:00:09]} 8. a4 {[%emt 0:00:16]} Bd7 {[%emt 0:01:09]} 9. Qxc4 {[%emt 0:02:40]} Bc6 {[%emt 0:00:21]} 10. Bg5 {[%emt 0:02:55]} Bd5 {[%emt 0:15:23]} 11. Qc1 {[%emt 0:02:33] E05: Open Catalan: 5 Nf3 Be7.} Nc6 {[%emt 0:00:23]} 12. Nbd2 {[%emt 0:10:58]} Ne4 {[%emt 0:11:43] [#]} 13. Nxe4 $146 {[%emt 0:10:38] The position is equal.} ({Predecessor:} 13. Bxe7 Nxe7 14. Nxe4 Bxe4 15. Qf4 Bxf3 16. Bxf3 Nd5 17. Qc1 a5 18. Rd1 c6 19. Qc5 {½-½ (32) Cordova,E (2595)-Albornoz Cabrera,C (2559) Merida 2018}) 13... Bxe4 {[%emt 0:00:08]} 14. Bxe7 {[%emt 0:09:06]} Qxe7 {[%emt 0:02:08]} 15. Qf4 {[%emt 0:00:27]} f5 {[%emt 0:01:54]} 16. Rfc1 {[%emt 0:10:18]} Rad8 {[%emt 0:05:14]} 17. e3 {[%emt 0:03:31]} Rd6 {[%emt 0:01:55]} 18. h4 {[%emt 0:08:46]} Nb4 {[%emt 0:10:32]} 19. Ne5 {[%emt 0:04:16]} Bxg2 {[%emt 0:05:20]} 20. Kxg2 {[%emt 0:00:13]} Nd5 {[%emt 0:00:07]} 21. Qf3 {[%emt 0:04:37]} Rb6 {[%emt 0:01:05]} 22. Rc2 {[%emt 0:05:27]} Rb3 {[%emt 0:00:40][%cal Of5f4] White must now prevent ...f4!} 23. Qe2 {[%emt 0:01:40]} f4 {[%emt 0:02:35]} 24. exf4 {[%emt 0:03:26]} Rxf4 {[%emt 0:00:15]} 25. Nd3 {[%emt 0:04:44]} Rxd3 {[%emt 0:12:31]} 26. Qxd3 $16 {[%emt 0:00:11]} Rxh4 {[%emt 0:09:58]} (26... Rg4 $16 {is a better defense.} 27. Qb3 c6) 27. Qd2 {[%emt 0:02:53]} ({Better is} 27. Qb3 $18 Qg5 28. Qxb7) 27... Rg4 $14 {[%emt 0:01:40]} 28. Rh1 {[%emt 0:03:18]} Qf6 {[%emt 0:00:27]} 29. Rc4 {[%emt 0:03:04] [#]} (29. Qd1 $11 {remains equal.} Qg6 30. Re1) 29... Qg6 {[%emt 0:05:41] &Nero is more active.} (29... h5 $1 $17 {...h4 is the strong threat.} 30. Rb4 Nxb4 31. Qxb4 Rxd4 32. Qxb7 Qf5) 30. Kf1 {[%emt 0:03:11]} Qe4 {[%emt 0:00:55]} 31. Rh4 {[%emt 0:01:57][%mdl 8192]} (31. Rg1 $11) 31... Rxh4 $19 {[%emt 0:00:22][%mdl 64] Overworked Piece. Black is clearly winning.} 32. gxh4 {[%emt 0:00:17]} Nf4 {[%emt 0:00:15][%cal Re4h1]} 33. f3 {[%emt 0:00:37]} Qxf3+ {[%emt 0:00:06]} 34. Qf2 {[%emt 0:01:21]} Qd1+ {[%emt 0:00:11] Weighted Error Value: White=0.58/Black=0.23 (precise)} 0-1

[Event "BSV-SCK IM 2022"]
[Site "Berlin"]
[Date "2022.04.10"]
[Round "4.3"]
[White "Mcgowan, Daniel"]
[Black "Eilenberg, Jonas"]
[Result "1/2-1/2"]
[ECO "C02"]
[WhiteElo "2101"]
[BlackElo "2135"]
[Annotator "RC"]
[PlyCount "50"]
[EventDate "2022.04.08"]
[EventType "tourn"]
[EventCountry "GER"]
[SourceTitle "playchess.com"]
[Source "ChessBase"]
[SourceQuality "1"]
[TimeControl "5400+30"]

1. e4 {[%emt 0:00:05]} e6 {[%emt 0:00:05]} 2. d4 {[%emt 0:00:09]} d5 {[%emt 0:00:07]} 3. e5 {[%emt 0:00:26]} c5 {[%emt 0:00:06]} 4. c3 {[%emt 0:00:09]} Qb6 {[%emt 0:00:07]} 5. Nf3 {[%emt 0:01:09]} Nc6 {[%emt 0:00:11]} 6. Bd3 {[%emt 0:01:52]} cxd4 {[%emt 0:01:15]} 7. O-O {[%emt 0:01:06]} Bd7 {[%emt 0:00:21]} 8. Re1 {[%emt 0:02:05]} Nge7 {[%emt 0:11:48]} 9. h4 {[%emt 0:06:15]} a6 {[%emt 0:05:57]} 10. h5 {[%emt 0:07:14]} Rc8 {[%emt 0:04:16]} 11. Ng5 {[%emt 0:25:36]} h6 {[%emt 0:03:29]} 12. Nf3 {[%emt 0:01:11]} Ng8 {[%emt 0:07:05]} 13. Nbd2 {[%emt 0:07:41]} dxc3 {[%emt 0:04:20]} 14. bxc3 {[%emt 0:07:23]} Na5 {[%emt 0:03:49]} 15. Rb1 {[%emt 0:01:53]} Qa7 {[%emt 0:04:10]} 16. Nb3 {[%emt 0:12:05]} Nxb3 {[%emt 0:08:57]} 17. Qxb3 {[%emt 0:00:57]} Bc5 {[%emt 0:01:53]} 18. Nd4 {[%emt 0:05:15]} b5 {[%emt 0:03:27]} 19. Be3 {[%emt 0:07:13]} Ne7 {[%emt 0:01:51]} 20. Qd1 {[%emt 0:02:54]} Bb6 {[%emt 0:18:38]} 21. Qg4 {[%emt 0:04:04]} Rxc3 {[%emt 0:02:53]} 22. Rbd1 {[%emt 0:00:33]} Kf8 {[%emt 0:05:52]} 23. Qf4 {[%emt 0:02:13]} Ke8 {[%emt 0:01:02]} 24. Qg4 {[%emt 0:00:20]} Kf8 {[%emt 0:00:58]} 25. Qf4 {[%emt 0:00:02]} Ke8 {[%emt 0:00:02]} 1/2-1/2

[Event "BSV-SCK IM 2022"]
[Site "Berlin"]
[Date "2022.04.10"]
[Round "4.4"]
[White "Glek, Igor"]
[Black "Glantz, Robert"]
[Result "1-0"]
[ECO "B52"]
[WhiteElo "2476"]
[BlackElo "2318"]
[Annotator "TA"]
[PlyCount "105"]
[EventDate "2022.04.08"]
[EventType "tourn"]
[EventCountry "GER"]
[SourceTitle "playchess.com"]
[Source "ChessBase"]
[SourceQuality "1"]
[TimeControl "5400+30"]

{[%evp 11,105,21,22,0,14,9,9,0,7,0,0,0,0,0,0,-20,-27,-18,-20,-21,0,0,5,-9,-1,-20,-22,-50,0,0,0,0,0,0,0,0,10,11,0,0,0,0,0,0,0,0,-3,-8,16,0,311,308,294,14,41,41,102,76,132,124,158,154,142,161,184,150,293,293,585,560,1022,1032,1000,990,476,825,12835,12835,12836,12836,12837,12837,12837,12838,12838,12839,12839,12839,12840,12841,12842,12842,12843,12842,12842,12843]} 1. e4 {[%emt 0:00:03]} c5 {[%emt 0:05:11]} 2. Nf3 {[%emt 0:03:43]} d6 {[%emt 0:01:00]} 3. Bb5+ {[%emt 0:00:08]} Bd7 {[%emt 0:00:53]} 4. Bxd7+ {[%emt 0:00:13]} Qxd7 {[%emt 0:00:45]} 5. O-O {[%emt 0:00:05]} Nf6 {[%emt 0:00:30]} 6. Qe2 {[%emt 0:00:15]} Nc6 {[%emt 0:00:35]} 7. Rd1 {[%emt 0:00:06] B52: Sicilian: Moscow Variation with 3...Bd7.} Rc8 {[%emt 0:01:41]} 8. d4 {[%emt 0:07:30]} cxd4 {[%emt 0:05:07]} 9. Nxd4 {[%emt 0:00:13] The position is equal.} g6 {[%emt 0:09:44]} 10. Nf3 {[%emt 0:03:18]} Bg7 {[%emt 0:09:16]} 11. Nc3 {[%emt 0:00:05] [#]} Qe6 $146 {[%emt 0:13:35] Inhibits e5.} ({Predecessor:} 11... Ng4 12. Nd5 O-O 13. h3 Nf6 14. c3 Rfe8 15. Nxf6+ Bxf6 16. Bf4 Bg7 17. Rd5 e5 {0-1 (42) Feliciano Ebert,V (2252)-Cubas,J (2474) Praia da Pipa 2014}) 12. Ng5 {[%emt 0:05:34]} Qd7 {[%emt 0:02:58]} 13. f4 {[%emt 0:01:41]} Qc7 {[%emt 0:00:20]} 14. Nb5 {[%emt 0:01:40]} Qb8 {[%emt 0:00:31]} 15. c4 {[%emt 0:03:45]} b6 {[%emt 0:05:37]} 16. Rb1 {[%emt 0:07:05]} O-O {[%emt 0:05:56]} 17. b3 {[%emt 0:00:27]} a6 {[%emt 0:02:44]} 18. Nc3 {[%emt 0:00:06]} b5 {[%emt 0:02:36]} 19. cxb5 {[%emt 0:12:49] [#]} axb5 {[%emt 0:00:11]} (19... Nd4 $1 $15 20. Rxd4 Qb6) 20. Nxb5 $11 {[%emt 0:01:21]} h6 {[%emt 0:00:21]} 21. Nf3 {[%emt 0:00:52]} Nxe4 $1 {[%emt 0:00:14]} 22. Qxe4 {[%emt 0:00:37] a4 is the strong threat.} Qxb5 {[%emt 0:00:06]} 23. a4 {[%emt 0:01:10]} Qb4 {[%emt 0:05:08]} 24. Qxb4 {[%emt 0:01:54]} Nxb4 {[%emt 0:00:06]} 25. Bd2 {[%emt 0:00:07]} Rb8 {[%emt 0:10:35]} 26. Re1 {[%emt 0:04:57]} Rb7 {[%emt 0:02:57]} 27. a5 {[%emt 0:03:53]} Rfb8 {[%emt 0:09:35]} 28. Bxb4 {[%emt 0:02:53]} Rxb4 {[%emt 0:00:02]} 29. Rxe7 {[%emt 0:00:06]} Bf8 {[%emt 0:04:17]} 30. Rd7 {[%emt 0:01:51] aiming for a6.} Rxb3 $2 {[%emt 0:00:58][%mdl 8192]} (30... Ra8 $11) 31. Rxb3 $18 {[%emt 0:03:10]} Rxb3 $11 {[%emt 0:00:05][%mdl 4096] Endgame KRB-KRN} 32. Nd4 $2 {[%emt 0:00:07]} (32. a6 $18) 32... Ra3 {[%emt 0:00:52]} (32... Rb4 $5 {[%cal Rb4d4]} 33. Nc6 Rc4 $11) 33. Nc6 {[%emt 0:00:16]} Ra1+ {[%emt 0:01:35] White now steadily converts the win.} 34. Kf2 {[%emt 0:00:03]} Kg7 {[%emt 0:00:36]} (34... Rc1 $142 35. Rc7 Kg7) 35. Ke3 $16 {[%emt 0:07:22]} Ra4 {[%emt 0:00:13]} 36. g3 {[%emt 0:00:46][%cal Bg2g3,Bg3h4][%mdl 32]} h5 {[%emt 0:01:05][%cal Oh5h4]} 37. Kd3 {[%emt 0:00:31] &Bianco is more active.} h4 {[%emt 0:00:26]} 38. gxh4 {[%emt 0:00:24]} Kf6 {[%emt 0:00:18]} (38... Kg8 $16 {was necessary.} 39. Rd8 f6) 39. Rd8 $18 {[%emt 0:00:07]} Bh6 {[%emt 0:00:40]} (39... Ra3+ 40. Kc4 d5+ 41. Rxd5 (41. Kxd5 Bh6 $18) 41... Ra2) 40. Rxd6+ {[%emt 0:00:20] White is clearly winning.} Kf5 {[%emt 0:00:37] [#]} 41. a6 $1 {[%emt 0:05:11]} Ra3+ {[%emt 0:00:00]} 42. Kc4 {[%emt 0:00:00]} Bxf4 {[%emt 0:00:00]} 43. Rd5+ {[%emt 0:00:00]} Ke4 {[%emt 0:00:00]} 44. Ra5 {[%emt 0:00:00]} Rxa5 {[%emt 0:00:00]} 45. Nxa5 {[%emt 0:00:00] KB-KN} Be3 {[%emt 0:00:00]} 46. Nb7 {[%emt 0:00:00]} ({Weaker is} 46. Nc6 f5 $16) 46... Ba7 {[%emt 0:00:00]} 47. Nd6+ {[%emt 0:00:00]} Ke5 {[%emt 0:00:00]} 48. Nxf7+ {[%emt 0:00:00]} Ke6 {[%emt 0:00:00]} 49. Ng5+ {[%emt 0:00:00]} Kd6 {[%emt 0:00:00]} 50. Kb5 {[%emt 0:00:00]} Kd5 {[%emt 0:00:18]} 51. Nh7 {[%emt 0:00:00]} Ke6 {[%emt 0:04:18]} 52. Kc6 {[%emt 0:00:00]} Kf5 {[%emt 0:00:15]} 53. Nf8 {[%emt 0:00:00] Weighted Error Value: White=0.17 (very precise) /Black=0.34} 1-0